fUST/lending_fUST_20260519
["ID","MTS","AMOUNT","RATE_DAILY","PERIOD"]
[422637688,1779195040000,-500.0,8.956e-05,2]
[422637687,1779195040000,-500.0,8.956e-05,2]
[422637700,1779195040000,-500.0,9.055e-05,2]
[422637690,1779195040000,-500.0,9.055e-05,2]
[422637701,1779195040000,-500.0,9.055e-05,2]
[422637689,1779195040000,-164.9947177,9.002e-05,2]
[422637692,1779195040000,-500.0,9.055e-05,2]
[422637666,1779195040000,-500.0,8.856e-05,2]
[422637678,1779195040000,-500.0,8.956e-05,2]
[422637664,1779195040000,-909.15,8.856e-05,2]
[422637648,1779195040000,-6729.71,8.856e-05,2]
[422637660,1779195040000,-500.0,8.856e-05,2]
[422637696,1779195040000,-166.79600083,9.055e-05,2]
[422637637,1779195040000,-500.0,8.855e-05,2]
[422637638,1779195040000,-549.89,8.855e-05,2]
[422637636,1779195040000,-500.0,8.855e-05,2]
[422637639,1779195040000,-500.0,8.855e-05,2]
[422637641,1779195040000,-391.7451912,8.855e-05,2]
[422637642,1779195040000,-500.0,8.855e-05,2]
[422637640,1779195040000,-984.29,8.855e-05,2]
[422637643,1779195040000,-500.0,8.856e-05,2]
[422637644,1779195040000,-500.0,8.856e-05,2]
[422637646,1779195040000,-692.33,8.856e-05,2]
[422637645,1779195040000,-1065.77,8.856e-05,2]
[422637647,1779195040000,-500.0,8.856e-05,2]
[422637649,1779195040000,-180.96854345,8.856e-05,2]
[422637650,1779195040000,-1300.49,8.856e-05,2]
[422637651,1779195040000,-596.21,8.856e-05,2]
[422637652,1779195040000,-500.0,8.856e-05,2]
[422637656,1779195040000,-500.0,8.856e-05,2]
[422637657,1779195040000,-1055.5,8.856e-05,2]
[422637654,1779195040000,-739.73,8.856e-05,2]
[422637655,1779195040000,-500.0,8.856e-05,2]
[422637653,1779195040000,-500.0,8.856e-05,2]
[422637659,1779195040000,-500.0,8.856e-05,2]
[422637658,1779195040000,-500.0,8.856e-05,2]
[422637662,1779195040000,-500.0,8.856e-05,2]
[422637661,1779195040000,-500.0,8.856e-05,2]
[422637663,1779195040000,-500.0,8.856e-05,2]
[422637665,1779195040000,-500.0,8.856e-05,2]
[422637698,1779195040000,-298.31438665,9.055e-05,2]
[422637712,1779195040000,-549.89,9.129e-05,2]
[422637703,1779195040000,-500.0,9.055e-05,2]
[422637732,1779195040000,-361.03765906,9.13e-05,2]
[422637735,1779195040000,-500.0,9.13e-05,2]
[422637734,1779195040000,-500.0,9.13e-05,2]
[422637745,1779195040000,-500.0,9.13e-05,2]
[422637737,1779195040000,-909.15,9.13e-05,2]
[422637739,1779195040000,-500.0,9.13e-05,2]
[422637741,1779195040000,-500.0,9.13e-05,2]
[422637750,1779195040000,-500.0,9.13e-05,2]
[422637746,1779195040000,-245.57882415,9.13e-05,2]
[422637748,1779195040000,-254.42117585,9.13e-05,2]
[422637752,1779195040000,-500.0,9.229e-05,2]
[422637758,1779195040000,-500.0,9.23e-05,2]
[422637754,1779195040000,-500.0,9.23e-05,2]
[422637760,1779195040000,-500.0,9.23e-05,2]
[422637757,1779195040000,-500.0,9.23e-05,2]
[422637761,1779195040000,-725.0291,9.23e-05,2]
[422637699,1779195040000,-500.0,9.055e-05,2]
[422637756,1779195040000,-500.0,9.23e-05,2]
[422637765,1779195040000,-500.0,9.23e-05,2]
[422637767,1779195040000,-500.0,9.23e-05,2]
[422637771,1779195040000,-500.0,9.23e-05,2]
[422637769,1779195040000,-500.0,9.23e-05,2]
[422637773,1779195040000,-199.8235581,9.23e-05,2]
[422637775,1779195040000,-500.0,9.23e-05,2]
[422637777,1779195040000,-500.0,9.23e-05,2]
[422637779,1779195040000,-500.0,9.329e-05,2]
[422637781,1779195040000,-500.0,9.329e-05,2]
[422637743,1779195040000,-500.0,9.13e-05,2]
[422637744,1779195040000,-500.0,9.13e-05,2]
[422637763,1779195040000,-500.0,9.23e-05,2]
[422637731,1779195040000,-500.0,9.13e-05,2]
[422637733,1779195040000,-500.0,9.13e-05,2]
[422637702,1779195040000,-500.0,9.055e-05,2]
[422637704,1779195040000,-500.0,9.055e-05,2]
[422637705,1779195040000,-151.0,9.056e-05,2]
[422637707,1779195040000,-8094.72153121,9.123e-05,2]
[422637708,1779195040000,-1905.27846879,9.123e-05,2]
[422637709,1779195040000,-500.0,9.129e-05,2]
[422637714,1779195040000,-984.29,9.129e-05,2]
[422637710,1779195040000,-500.0,9.129e-05,2]
[422637713,1779195040000,-500.0,9.129e-05,2]
[422637711,1779195040000,-500.0,9.129e-05,2]
[422637715,1779195040000,-500.0,9.129e-05,2]
[422637716,1779195040000,-500.0,9.13e-05,2]
[422637706,1779195040000,-151.0,9.123e-05,2]
[422637718,1779195040000,-1065.77,9.13e-05,2]
[422637730,1779195040000,-500.0,9.13e-05,2]
[422637717,1779195040000,-500.0,9.13e-05,2]
[422637728,1779195040000,-500.0,9.13e-05,2]
[422637729,1779195040000,-1055.5,9.13e-05,2]
[422637725,1779195040000,-500.0,9.13e-05,2]
[422637726,1779195040000,-739.73,9.13e-05,2]
[422637727,1779195040000,-500.0,9.13e-05,2]
[422637723,1779195040000,-596.21,9.13e-05,2]
[422637724,1779195040000,-500.0,9.13e-05,2]
[422637722,1779195040000,-1300.49,9.13e-05,2]
[422637719,1779195040000,-692.33,9.13e-05,2]
[422637720,1779195040000,-500.0,9.13e-05,2]
[422637721,1779195040000,-6729.71,9.13e-05,2]
[422637839,1779195041000,-739.73,9.404e-05,2]
[422637829,1779195041000,-1300.49,9.404e-05,2]
[422637827,1779195041000,-6729.71,9.404e-05,2]
[422637841,1779195041000,-110.22648684,9.404e-05,2]
[422637843,1779195041000,-389.77351316,9.404e-05,2]
[422637837,1779195041000,-500.0,9.404e-05,2]
[422637835,1779195041000,-401.78028141,9.404e-05,2]
[422637833,1779195041000,-98.21971859,9.404e-05,2]
[422637848,1779195041000,-500.0,9.404e-05,2]
[422637845,1779195041000,-1055.5,9.404e-05,2]
[422637844,1779195041000,-500.0,9.404e-05,2]
[422637846,1779195041000,-500.0,9.404e-05,2]
[422637847,1779195041000,-500.0,9.404e-05,2]
[422637850,1779195041000,-500.0,9.404e-05,2]
[422637851,1779195041000,-909.15,9.404e-05,2]
[422637825,1779195041000,-500.0,9.404e-05,2]
[422637852,1779195041000,-500.0,9.404e-05,2]
[422637831,1779195041000,-596.21,9.404e-05,2]
[422637823,1779195041000,-692.33,9.404e-05,2]
[422637794,1779195041000,-500.0,9.329e-05,2]
[422637819,1779195041000,-500.0,9.404e-05,2]
[422637849,1779195041000,-500.0,9.404e-05,2]
[422637785,1779195041000,-500.0,9.329e-05,2]
[422637783,1779195041000,-500.0,9.329e-05,2]
[422637790,1779195041000,-500.0,9.329e-05,2]
[422637792,1779195041000,-152.1501408,9.329e-05,2]
[422637788,1779195041000,-500.0,9.329e-05,2]
[422637796,1779195041000,-151.0,9.33e-05,2]
[422637800,1779195041000,-500.0,9.386e-05,2]
[422637798,1779195041000,-537.6845,9.386e-05,2]
[422637813,1779195041000,-984.29,9.403e-05,2]
[422637815,1779195041000,-500.0,9.403e-05,2]
[422637802,1779195041000,-500.0,9.403e-05,2]
[422637817,1779195041000,-500.0,9.404e-05,2]
[422637811,1779195041000,-500.0,9.403e-05,2]
[422637804,1779195041000,-500.0,9.403e-05,2]
[422637806,1779195041000,-500.0,9.403e-05,2]
[422637809,1779195041000,-549.89,9.403e-05,2]
[422637821,1779195041000,-1065.77,9.404e-05,2]
[422637853,1779195041000,-500.0,9.404e-05,2]
[422637890,1779195041000,-151.0,9.589e-05,2]
[422637856,1779195041000,-500.0,9.404e-05,2]
[422637884,1779195041000,-500.0,9.504e-05,2]
[422637885,1779195041000,-300.72023041,9.504e-05,2]
[422637883,1779195041000,-396.38339695,9.504e-05,2]
[422637887,1779195041000,-151.0,9.589e-05,2]
[422637889,1779195041000,-151.0,9.589e-05,2]
[422637888,1779195041000,-151.0,9.589e-05,2]
[422637899,1779195041000,-151.0,9.589e-05,2]
[422637891,1779195041000,-151.0,9.589e-05,2]
[422637892,1779195041000,-151.0,9.589e-05,2]
[422637893,1779195041000,-151.0,9.589e-05,2]
[422637895,1779195041000,-151.0,9.589e-05,2]
[422637894,1779195041000,-151.0,9.589e-05,2]
[422637896,1779195041000,-151.0,9.589e-05,2]
[422637897,1779195041000,-151.0,9.589e-05,2]
[422637898,1779195041000,-151.0,9.589e-05,2]
[422637900,1779195041000,-151.0,9.589e-05,2]
[422637854,1779195041000,-500.0,9.404e-05,2]
[422637882,1779195041000,-103.61660305,9.504e-05,2]
[422637881,1779195041000,-500.0,9.504e-05,2]
[422637886,1779195041000,-199.27976959,9.504e-05,2]
[422637879,1779195041000,-500.0,9.504e-05,2]
[422637855,1779195041000,-500.0,9.404e-05,2]
[422637857,1779195041000,-500.0,9.404e-05,2]
[422637858,1779195041000,-500.0,9.404e-05,2]
[422637859,1779195041000,-1381.15827429,9.408e-05,2]
[422637880,1779195041000,-184.7293,9.504e-05,2]
[422637865,1779195041000,-165.935515,5.226e-05,2]
[422637866,1779195041000,-165.935515,6.494e-05,2]
[422637868,1779195041000,-165.935515,7.762e-05,2]
[422637869,1779195041000,-207.31954895,9.408e-05,2]
[422637861,1779195041000,165.935515,3.959e-05,2]
[422637870,1779195041000,-500.0,9.503e-05,2]
[422637872,1779195041000,-500.0,9.504e-05,2]
[422637875,1779195041000,-500.0,9.504e-05,2]
[422637874,1779195041000,-500.0,9.504e-05,2]
[422637876,1779195041000,-725.0291,9.504e-05,2]
[422637877,1779195041000,-500.0,9.504e-05,2]
[422637873,1779195041000,-500.0,9.504e-05,2]
[422637878,1779195041000,-500.0,9.504e-05,2]
[422637871,1779195041000,-500.0,9.504e-05,2]
[422637910,1779195042000,-500.0,9.603e-05,2]
[422637908,1779195042000,-500.0,9.603e-05,2]
[422637909,1779195042000,-500.0,9.603e-05,2]
[422637907,1779195042000,-500.0,9.603e-05,2]
[422637904,1779195042000,-151.0,9.589e-05,2]
[422637903,1779195042000,-151.0,9.589e-05,2]
[422637905,1779195042000,-196.005969,9.589e-05,2]
[422637902,1779195042000,-151.0,9.589e-05,2]
[422637901,1779195042000,-151.0,9.589e-05,2]
[422637911,1779195042000,-346.88412393,9.603e-05,2]
[422637906,1779195042000,-500.0,9.6e-05,2]
[422637913,1779195042000,-500.0,9.603e-05,2]
[422637919,1779195042000,-984.29,9.677e-05,2]
[422637912,1779195042000,-500.0,9.603e-05,2]
[422637914,1779195042000,-500.0,9.677e-05,2]
[422637924,1779195042000,-692.33,9.678e-05,2]
[422637926,1779195042000,-2094.36616137,9.678e-05,2]
[422637925,1779195042000,-500.0,9.678e-05,2]
[422637923,1779195042000,-1065.77,9.678e-05,2]
[422637922,1779195042000,-500.0,9.678e-05,2]
[422637921,1779195042000,-500.0,9.678e-05,2]
[422637916,1779195042000,-500.0,9.677e-05,2]
[422637918,1779195042000,-500.0,9.677e-05,2]
[422637915,1779195042000,-500.0,9.677e-05,2]
[422637917,1779195042000,-549.89,9.677e-05,2]
[422637920,1779195042000,-500.0,9.677e-05,2]
[422638034,1779195044000,-1055.5,9.678e-05,2]
[422638027,1779195044000,-596.21,9.678e-05,2]
[422638031,1779195044000,-72.37405581,9.678e-05,2]
[422638032,1779195044000,-427.62594419,9.678e-05,2]
[422638035,1779195044000,-425.74303972,9.678e-05,2]
[422638038,1779195044000,-83.29151822,9.678e-05,2]
[422638036,1779195044000,-74.25696028,9.678e-05,2]
[422638037,1779195044000,-500.0,9.678e-05,2]
[422638039,1779195044000,-416.70848178,9.678e-05,2]
[422638040,1779195044000,-500.0,9.678e-05,2]
[422638045,1779195044000,-500.0,9.678e-05,2]
[422638041,1779195044000,-500.0,9.678e-05,2]
[422638033,1779195044000,-500.0,9.678e-05,2]
[422638025,1779195044000,-4635.34383863,9.678e-05,2]
[422638023,1779195044000,-151.0,9.13e-05,2]
[422638028,1779195044000,-500.0,9.678e-05,2]
[422638030,1779195044000,-739.73,9.678e-05,2]
[422638029,1779195044000,-500.0,9.678e-05,2]
[422638024,1779195044000,-500.0,9.404e-05,2]
[422638021,1779195044000,-500.0,9.13e-05,2]
[422638019,1779195044000,-151.0,9.129e-05,2]
[422638011,1779195044000,-151.0,8.783e-05,2]
[422638009,1779195044000,-261.85136445,8.582e-05,2]
[422638013,1779195044000,-151.0,8.856e-05,2]
[422638015,1779195044000,-500.0,8.856e-05,2]
[422638017,1779195044000,-151.0,9.123e-05,2]
[422638002,1779195044000,-52.0,8.582e-05,2]
[422638000,1779195044000,-500.0,8.582e-05,2]
[422638044,1779195044000,-500.0,9.678e-05,2]
[422638026,1779195044000,-1300.49,9.678e-05,2]
[422638042,1779195044000,-909.15,9.678e-05,2]
[422638061,1779195044000,-320.6372766,9.778e-05,2]
[422638046,1779195044000,-500.0,9.678e-05,2]
[422638043,1779195044000,-500.0,9.678e-05,2]
[422638076,1779195044000,-321.73623084,9.951e-05,2]
[422638075,1779195044000,-500.0,9.951e-05,2]
[422638074,1779195044000,-500.0,9.951e-05,2]
[422638073,1779195044000,-500.0,9.951e-05,2]
[422638072,1779195044000,-500.0,9.934e-05,2]
[422638070,1779195044000,-203.48796106,9.876e-05,2]
[422638071,1779195044000,-500.0,9.876e-05,2]
[422638067,1779195044000,-500.0,9.876e-05,2]
[422638068,1779195044000,-500.0,9.876e-05,2]
[422638065,1779195044000,-500.0,9.778e-05,2]
[422638066,1779195044000,-151.0,9.824e-05,2]
[422638064,1779195044000,-500.0,9.778e-05,2]
[422638063,1779195044000,-500.0,9.778e-05,2]
[422638069,1779195044000,-500.0,9.876e-05,2]
[422638060,1779195044000,-500.0,9.778e-05,2]
[422638062,1779195044000,-500.0,9.778e-05,2]
[422638048,1779195044000,-500.0,9.678e-05,2]
[422638050,1779195044000,-500.0,9.678e-05,2]
[422638049,1779195044000,-500.0,9.678e-05,2]
[422638052,1779195044000,-500.0,9.778e-05,2]
[422638051,1779195044000,-500.0,9.777e-05,2]
[422638053,1779195044000,-323.78832263,9.778e-05,2]
[422638047,1779195044000,-500.0,9.678e-05,2]
[422638055,1779195044000,-176.21167737,9.778e-05,2]
[422638056,1779195044000,-500.0,9.778e-05,2]
[422638058,1779195044000,-500.0,9.778e-05,2]
[422638057,1779195044000,-500.0,9.778e-05,2]
[422638059,1779195044000,-725.0291,9.778e-05,2]
[422638054,1779195044000,-166.248629,8.783e-05,2]
[422638112,1779195047000,-984.29,9.951e-05,2]
[422638109,1779195047000,-842.70829437,9.503e-05,2]
[422638113,1779195047000,-317.26184644,9.951e-05,2]
[422638114,1779195047000,-500.0,9.952e-05,2]
[422638119,1779195047000,-1576.45094405,9.952e-05,2]
[422638117,1779195047000,-692.33,9.952e-05,2]
[422638120,1779195047000,-5153.25905595,9.952e-05,2]
[422638115,1779195047000,-500.0,9.952e-05,2]
[422638118,1779195047000,-498.89903736,9.952e-05,2]
[422638121,1779195047000,-1300.49,9.952e-05,2]
[422638122,1779195047000,-596.21,9.952e-05,2]
[422638124,1779195047000,-430.0,9.952e-05,2]
[422638116,1779195047000,-1065.77,9.952e-05,2]
[422638111,1779195047000,-600.2737797,9.951e-05,2]
[422638123,1779195047000,-500.0,9.952e-05,2]
[422638108,1779195047000,-842.70829437,9.503e-05,2]
[422638106,1779195047000,-842.70829437,9.503e-05,2]
[422638107,1779195047000,-842.70829437,9.503e-05,2]
[422638103,1779195047000,-842.70829437,9.503e-05,2]
[422638105,1779195047000,-842.70829437,9.503e-05,2]
[422638104,1779195047000,-842.70829437,9.503e-05,2]
[422638101,1779195047000,-842.70829437,9.503e-05,2]
[422638102,1779195047000,-842.70829437,9.503e-05,2]
[422638100,1779195047000,-611.80428696,9.503e-05,2]
[422638097,1779195047000,-386.02875344,9.503e-05,2]
[422638098,1779195047000,-842.70829437,9.503e-05,2]
[422638099,1779195047000,-230.90400741,9.503e-05,2]
[422638096,1779195047000,-5739.6585059,9.123e-05,2]
[422638110,1779195047000,-228.15376916,9.951e-05,2]
[422638125,1779195047000,-739.73,9.952e-05,2]
[422638149,1779195047000,-500.0,0.00010052,2]
[422638128,1779195047000,-1055.5,9.952e-05,2]
[422638154,1779195047000,-500.0,0.00010052,2]
[422638150,1779195047000,-725.0291,0.00010052,2]
[422638152,1779195047000,-500.0,0.00010052,2]
[422638153,1779195047000,-500.0,0.00010052,2]
[422638155,1779195047000,-500.0,0.00010052,2]
[422638151,1779195047000,-500.0,0.00010052,2]
[422638156,1779195047000,-164.0,0.00010055,2]
[422638147,1779195047000,-469.95620076,0.00010052,2]
[422638148,1779195047000,-500.0,0.00010052,2]
[422638145,1779195047000,-500.0,0.00010052,2]
[422638146,1779195047000,-500.0,0.00010052,2]
[422638143,1779195047000,-500.0,0.0001,2]
[422638144,1779195047000,-500.0,0.00010051,2]
[422638137,1779195047000,-500.0,9.952e-05,2]
[422638127,1779195047000,-500.0,9.952e-05,2]
[422638136,1779195047000,-500.0,9.952e-05,2]
[422638138,1779195047000,-500.0,9.952e-05,2]
[422638126,1779195047000,-500.0,9.952e-05,2]
[422638129,1779195047000,-500.0,9.952e-05,2]
[422638131,1779195047000,-500.0,9.952e-05,2]
[422638132,1779195047000,-361.33251404,9.952e-05,2]
[422638133,1779195047000,-500.0,9.952e-05,2]
[422638130,1779195047000,-500.0,9.952e-05,2]
[422638135,1779195047000,-500.0,9.952e-05,2]
[422638142,1779195047000,-500.0,9.952e-05,2]
[422638139,1779195047000,-500.0,9.952e-05,2]
[422638141,1779195047000,-500.0,9.952e-05,2]
[422638140,1779195047000,-500.0,9.952e-05,2]
[422638134,1779195047000,-909.15,9.952e-05,2]
[422638183,1779195048000,-500.0,0.00010226,2]
[422638177,1779195048000,-400.62238608,0.00010226,2]
[422638178,1779195048000,-500.0,0.00010226,2]
[422638181,1779195048000,-500.0,0.00010226,2]
[422638180,1779195048000,-500.0,0.00010226,2]
[422638182,1779195048000,-500.0,0.00010226,2]
[422638188,1779195048000,-500.0,0.00010226,2]
[422638191,1779195048000,-500.0,0.00010226,2]
[422638187,1779195048000,-500.0,0.00010226,2]
[422638189,1779195048000,-500.0,0.00010226,2]
[422638184,1779195048000,-909.15,0.00010226,2]
[422638185,1779195048000,-500.0,0.00010226,2]
[422638179,1779195048000,-1055.5,0.00010226,2]
[422638190,1779195048000,-500.0,0.00010226,2]
[422638193,1779195048000,-300.0,0.00010273,2]
[422638186,1779195048000,-500.0,0.00010226,2]
[422638172,1779195048000,-6729.71,0.00010226,2]
[422638169,1779195048000,-500.0,0.00010226,2]
[422638176,1779195048000,-739.73,0.00010226,2]
[422638157,1779195048000,-187.13428689,0.00010145,2]
[422638158,1779195048000,-500.0,0.0001015,2]
[422638161,1779195048000,-294.33963166,0.0001015,2]
[422638165,1779195048000,-500.0,0.00010225,2]
[422638162,1779195048000,-162.380719,0.00010207,2]
[422638159,1779195048000,-500.0,0.0001015,2]
[422638160,1779195048000,-500.0,0.0001015,2]
[422638166,1779195048000,-549.89,0.00010225,2]
[422638164,1779195048000,-500.0,0.00010225,2]
[422638163,1779195048000,-500.0,0.00010225,2]
[422638167,1779195048000,-984.29,0.00010225,2]
[422638168,1779195048000,-500.0,0.00010226,2]
[422638192,1779195048000,-500.0,0.00010226,2]
[422638170,1779195048000,-1065.77,0.00010226,2]
[422638175,1779195048000,-500.0,0.00010226,2]
[422638174,1779195048000,-596.21,0.00010226,2]
[422638173,1779195048000,-1300.49,0.00010226,2]
[422638171,1779195048000,-692.33,0.00010226,2]
[422638195,1779195048000,-300.0,0.00010273,2]
[422638204,1779195048000,-300.0,0.00010273,2]
[422638197,1779195048000,-300.0,0.00010273,2]
[422638215,1779195048000,-500.0,0.00010326,2]
[422638216,1779195048000,-500.0,0.00010326,2]
[422638222,1779195048000,-500.0,0.00010482,2]
[422638221,1779195048000,-500.0,0.00010424,2]
[422638223,1779195048000,-500.0,0.00010499,2]
[422638225,1779195048000,-500.0,0.00010499,2]
[422638228,1779195048000,-500.0,0.000105,2]
[422638217,1779195048000,-500.0,0.00010326,2]
[422638224,1779195048000,-500.0,0.00010499,2]
[422638227,1779195048000,-984.29,0.00010499,2]
[422638229,1779195048000,-500.0,0.000105,2]
[422638230,1779195048000,-1065.77,0.000105,2]
[422638231,1779195048000,-692.33,0.000105,2]
[422638232,1779195048000,-6729.71,0.000105,2]
[422638233,1779195048000,-1300.49,0.000105,2]
[422638234,1779195048000,-525.33813581,0.000105,2]
[422638226,1779195048000,-549.89,0.00010499,2]
[422638194,1779195048000,-300.0,0.00010273,2]
[422638218,1779195048000,-500.0,0.00010326,2]
[422638214,1779195048000,-500.0,0.00010326,2]
[422638206,1779195048000,-300.0,0.00010273,2]
[422638198,1779195048000,-300.0,0.00010273,2]
[422638200,1779195048000,-300.0,0.00010273,2]
[422638201,1779195048000,-300.0,0.00010273,2]
[422638202,1779195048000,-300.0,0.00010273,2]
[422638199,1779195048000,-300.0,0.00010273,2]
[422638205,1779195048000,-300.0,0.00010273,2]
[422638212,1779195048000,-182.59821432,0.00010326,2]
[422638196,1779195048000,-300.0,0.00010273,2]
[422638208,1779195048000,-500.0,0.00010325,2]
[422638207,1779195048000,-300.0,0.00010273,2]
[422638210,1779195048000,-500.0,0.00010326,2]
[422638219,1779195048000,-516.27,0.00010424,2]
[422638220,1779195048000,-500.0,0.00010424,2]
[422638213,1779195048000,-725.0291,0.00010326,2]
[422638211,1779195048000,-500.0,0.00010326,2]
[422638203,1779195048000,-300.0,0.00010273,2]
[422638209,1779195048000,-313.93419039,0.00010326,2]
[422638235,1779195076000,151.0,0.000178,120]
[422638236,1779195116000,151.0,0.000178,120]
[422638237,1779195146000,151.0,0.000178,120]
[422638238,1779195186000,151.0,0.000178,120]
[422638240,1779195226000,151.0,0.000178,120]
[422638241,1779195266000,151.0,0.000178,120]
[422638242,1779195306000,151.0,0.000178,120]
[422638244,1779195336000,151.0,0.000178,120]
[422638245,1779195376000,151.0,0.000178,120]
[422638246,1779195416000,151.0,0.000178,120]
[422638251,1779195690000,-151.0,7.58e-05,2]
[422638252,1779195691000,-151.0,7.58e-05,2]
[422638344,1779196231000,-317.76980005,7.581e-05,2]
[422638348,1779196231000,-2263.93881357,7.6e-05,2]
[422638350,1779196231000,-917.81172552,7.641e-05,2]
[422638342,1779196231000,-2688.4225,7.58e-05,2]
[422638338,1779196231000,-1200.0,7.579e-05,2]
[422638334,1779196231000,-300.0,7.579e-05,2]
[422638336,1779196231000,-300.0,7.579e-05,2]
[422638346,1779196231000,-220.1004336,7.581e-05,2]
[422638330,1779196231000,-300.0,7.579e-05,2]
[422638357,1779196231000,-300.0,7.997e-05,2]
[422638332,1779196231000,-300.0,7.579e-05,2]
[422638340,1779196231000,-3719.6274195,7.58e-05,2]
[422638352,1779196231000,-1854.91606237,7.741e-05,2]
[422638354,1779196231000,-1976.70223123,7.841e-05,2]
[422638356,1779196231000,-2126.02674981,7.941e-05,2]
[422638379,1779196231000,-300.0,7.997e-05,2]
[422638381,1779196231000,-300.0,7.997e-05,2]
[422638377,1779196231000,-300.0,7.997e-05,2]
[422638374,1779196231000,-300.0,7.997e-05,2]
[422638371,1779196231000,-300.0,7.997e-05,2]
[422638375,1779196231000,-300.0,7.997e-05,2]
[422638367,1779196231000,-300.0,7.997e-05,2]
[422638365,1779196231000,-300.0,7.997e-05,2]
[422638363,1779196231000,-300.0,7.997e-05,2]
[422638362,1779196231000,-300.0,7.997e-05,2]
[422638359,1779196231000,-300.0,7.997e-05,2]
[422638369,1779196231000,-300.0,7.997e-05,2]
[422638399,1779196232000,-500.0,8.219e-05,2]
[422638385,1779196232000,-300.0,7.997e-05,2]
[422638389,1779196232000,-2787.8941325,8.128e-05,2]
[422638395,1779196232000,-500.0,8.219e-05,2]
[422638387,1779196232000,-2275.35126852,8.041e-05,2]
[422638391,1779196232000,-2424.67578723,8.141e-05,2]
[422638393,1779196232000,-2574.00030595,8.181e-05,2]
[422638397,1779196232000,-523.97,8.219e-05,2]
[422638383,1779196232000,-300.0,7.997e-05,2]
[422638407,1779196232000,-500.0,8.219e-05,2]
[422638416,1779196232000,-174.20755567,8.219e-05,2]
[422638417,1779196232000,-210.56081933,8.219e-05,2]
[422638414,1779196232000,-325.79244433,8.219e-05,2]
[422638412,1779196232000,-500.0,8.219e-05,2]
[422638401,1779196232000,-500.0,8.219e-05,2]
[422638408,1779196232000,-500.0,8.219e-05,2]
[422638405,1779196232000,-500.0,8.219e-05,2]
[422638403,1779196232000,-500.0,8.219e-05,2]
[422638410,1779196232000,-500.0,8.219e-05,2]
[422638464,1779196238000,-500.0,8.579e-05,2]
[422638478,1779196238000,-500.0,8.579e-05,2]
[422638465,1779196238000,-500.0,8.579e-05,2]
[422638467,1779196238000,-500.0,8.579e-05,2]
[422638482,1779196238000,-500.0,8.579e-05,2]
[422638484,1779196238000,-500.0,8.579e-05,2]
[422638472,1779196238000,-500.0,8.579e-05,2]
[422638483,1779196238000,-500.0,8.579e-05,2]
[422638471,1779196238000,-500.0,8.579e-05,2]
[422638480,1779196238000,-500.0,8.579e-05,2]
[422638477,1779196238000,-437.08628567,8.579e-05,2]
[422638474,1779196238000,-500.0,8.579e-05,2]
[422638475,1779196238000,-500.0,8.579e-05,2]
[422638476,1779196238000,-500.0,8.579e-05,2]
[422638470,1779196238000,-500.0,8.579e-05,2]
[422638481,1779196238000,-500.0,8.579e-05,2]
[422638479,1779196238000,-500.0,8.579e-05,2]
[422638485,1779196238000,-500.0,8.579e-05,2]
[422638487,1779196238000,-382.79791576,8.579e-05,2]
[422638489,1779196238000,-500.0,8.579e-05,2]
[422638490,1779196238000,-211.25162914,8.579e-05,2]
[422638488,1779196238000,-500.0,8.579e-05,2]
[422638486,1779196238000,-500.0,8.579e-05,2]
[422638473,1779196238000,-500.0,8.579e-05,2]
[422638466,1779196238000,-418.43641156,8.579e-05,2]
[422638459,1779196238000,-656.19,8.493e-05,2]
[422638469,1779196238000,-500.0,8.579e-05,2]
[422638441,1779196238000,-500.0,8.219e-05,2]
[422638440,1779196238000,-445.62918067,8.219e-05,2]
[422638502,1779196238000,-898.19900178,8.579e-05,2]